bitfinex/quotes_SOLUSD_20250630
["timestamp","ask_amount","ask_price","bid_price","bid_amount"]
[1751266543174,0.1,150.64,150.59,198.34640974]
[1751266543476,0.1,150.64,150.59,50.24640974]
[1751266543776,0.1,150.64,150.59,57.87314207]
[1751266545051,7.72673233,150.64,150.59,13.22349321]
[1751266545250,7.72673233,150.64,150.58,87.5]
[1751266545251,7.72673233,150.62,150.58,87.5]
[1751266545760,7.72673233,150.62,150.57,12.93985173]
[1751266545962,7.72673233,150.62,150.58,0.28432314]
[1751266547077,5.41147771,150.62,150.58,0.28432314]
[1751266547275,5.41147771,150.62,150.57,7.62673233]
[1751266547777,5.41147771,150.62,150.57,0.28432314]
[1751266547989,5.31181342,150.61,150.57,7.91105547]
[1751266548782,7.72673233,150.6,150.57,87.5]
[1751266549177,0.1,150.6,150.55,100.44047566]
[1751266549373,7.72673233,150.6,150.55,100.44047566]
[1751266549570,7.72673233,150.6,150.56,0.28432314]
[1751266550074,0.1,150.6,150.56,7.91105547]
[1751266550378,7.72673233,150.6,150.56,7.91105547]
[1751266551290,7.62673233,150.59,150.56,0.28432314]
[1751266551593,7.72673233,150.6,150.56,7.91105547]
[1751266551967,7.72673233,150.6,150.56,0.28432314]
[1751266552170,13.03886639,150.6,150.56,0.28432314]
[1751266552657,0.1,150.6,150.56,7.91105547]
[1751266552862,7.72673233,150.6,150.56,7.91105547]
[1751266553359,7.72673233,150.6,150.56,0.28432314]
[1751266553680,7.62673233,150.59,150.55,87.5]
[1751266553997,7.62673233,150.59,150.55,95.12673233]
[1751266554462,7.62673233,150.59,150.55,87.5]
[1751266554662,7.62673233,150.59,150.55,95.12673233]
[1751266555163,7.62673233,150.59,150.55,87.5]
[1751266555361,7.62673233,150.59,150.55,95.12673233]
[1751266556566,13.03887254,150.6,150.55,95.12673233]
[1751266557588,13.03887254,150.6,150.55,100.4404923]
[1751266557788,5.18020946,150.6,150.56,0.28432314]
[1751266557973,0.1,150.6,150.56,5.3645326]
[1751266558884,5.18020946,150.6,150.56,0.28432314]
[1751266559581,5.08020946,150.57,150.55,87.5]
[1751266559781,5.41215895,150.6,150.55,87.5]
[1751266559990,5.08020946,150.58,150.55,87.5]
[1751266560390,5.08020946,150.58,150.54,121.52]
[1751266560588,5.41215895,150.6,150.54,121.52]
[1751266560794,5.08020946,150.59,150.54,131.91439252]
[1751266561785,5.08020946,150.58,150.54,131.91439252]
[1751266562102,5.08020946,150.58,150.54,121.52]
[1751266562477,5.08020946,150.56,150.54,87.5]
[1751266562678,10.39277641,150.59,150.54,92.58020946]
[1751266563598,26.1,150.6,150.54,92.81414091]
[1751266563788,31.18020946,150.6,150.55,5.08020946]
[1751266563989,0.1,150.6,150.57,5.08020946]
[1751266565307,0.1,150.6,150.56,5.31321747]
[1751266565480,0.1,150.6,150.57,5.08020946]
[1751266566998,0.1,150.6,150.58,10.67720179]
[1751266567202,0.1,150.6,150.58,5.3645326]
[1751266567507,0.1,150.6,150.58,0.28432314]
[1751266568184,0.1,150.6,150.58,5.5970323]
[1751266568586,0.1,150.6,150.59,5.08020946]
[1751266569208,0.1,150.6,150.59,10.67697034]
[1751266570607,0.1,150.6,150.59,0.28432314]
[1751266570814,0.1,150.6,150.59,10.67697034]
[1751266571318,0.1,150.6,150.59,5.59676088]
[1751266571496,0.1,150.6,150.59,10.67697034]
[1751266572112,0.1,150.6,150.59,98.17697034]
[1751266572914,0.1,150.6,150.59,116.8266192]
[1751266577806,0.1,150.6,150.59,111.74640974]
[1751266578006,0.1,150.6,150.59,116.8266192]
[1751266579151,0.1,150.6,150.59,111.74640974]
[1751266579429,0.1,150.6,150.59,116.8266192]
[1751266580317,0.1,150.6,150.59,111.74640974]
[1751266580627,0.1,150.6,150.59,116.8266192]
[1751266581439,0.1,150.6,150.59,124.7866192]
[1751266581610,0.1,150.6,150.59,95.74432314]
[1751266581928,0.1,150.6,150.59,100.54020946]
[1751266582430,0.1,150.6,150.59,100.8245326]
[1751266584340,0.1,150.6,150.59,95.74432314]
[1751266584809,0.1,150.6,150.59,95.46]
[1751266585009,0.1,150.6,150.59,95.74432314]
[1751266586027,0.1,150.6,150.59,106.13697034]
[1751266586535,0.1,150.6,150.59,124.7866192]
[1751266588832,0.1,150.6,150.59,150.7866192]
[1751266589012,0.1,150.6,150.59,145.70640974]
[1751266589219,0.1,150.6,150.59,150.7866192]
[1751266590343,0.1,150.6,150.59,95.74432314]
[1751266590641,0.1,150.6,150.59,101.05676088]
[1751266591028,0.1,150.6,150.59,95.74432314]
[1751266591417,0.1,150.6,150.59,101.05676088]
[1751266591717,0.1,150.6,150.59,106.13697034]
[1751266591939,0.1,150.6,150.59,101.05676088]
[1751266592133,0.1,150.6,150.59,106.13697034]
[1751266592318,0.1,150.6,150.59,95.74432314]
[1751266592839,0.1,150.6,150.59,8.24432314]
[1751266593533,0.1,150.6,150.59,13.3245326]
[1751266593734,0.1,150.6,150.59,18.63697034]
[1751266594965,0.1,150.6,150.59,37.2866192]
[1751266595344,0.1,150.6,150.59,18.63697034]
[1751266596760,0.1,150.6,150.59,67.7266192]
[1751266596977,0.1,150.62,150.61,5.3645326]
[1751266597463,0.1,150.62,150.61,7.84265993]
[1751266597838,0.1,150.62,150.61,52.72383161]
[1751266598036,0.1,150.62,150.61,39.15439221]
[1751266598270,0.1,150.62,150.61,8.07418275]
[1751266598438,0.1,150.62,150.61,13.15439221]
[1751266600867,0.1,150.62,150.61,8.07418275]
[1751266601458,0.1,150.62,150.61,13.15439221]
[1751266606258,0.1,150.62,150.61,8.07418275]
[1751266606563,0.1,150.62,150.61,13.15439221]
[1751266608089,0.1,150.62,150.61,8.07418275]
[1751266608309,0.1,150.62,150.61,13.15439221]
[1751266609804,0.1,150.62,150.61,100.65439221]
[1751266610001,0.1,150.62,150.61,95.28985961]
[1751266610598,0.1,150.62,150.61,95.57418275]
[1751266613586,0.1,150.62,150.61,13.15439221]
[1751266614496,0.1,150.62,150.61,31.80404107]
[1751266620018,0.1,150.62,150.61,13.15439221]
[1751266620210,0.1,150.62,150.61,2.47812733]
[1751266620611,0.1,150.62,150.61,2.76245047]
[1751266621525,0.1,150.62,150.61,8.07418275]
[1751266623130,0.1,150.62,150.61,13.15439221]
[1751266624730,0.1,150.62,150.61,31.80404107]
[1751266625324,0.1,150.62,150.61,119.30404107]
[1751266625634,5.08020946,150.67,150.62,0.28432314]
[1751266625833,5.08020946,150.67,150.63,2.47812733]
[1751266626013,5.08020946,150.67,150.64,2.47812733]
[1751266626336,5.08020946,150.67,150.65,2.47812733]
[1751266626538,5.08020946,150.67,150.62,98.17558493]
[1751266626739,5.08020946,150.67,150.63,2.48348394]
[1751266627048,5.08020946,150.67,150.64,2.48348394]
[1751266627209,5.08020946,150.67,150.65,2.48348394]
[1751266627410,5.08020946,150.67,150.62,98.17558493]
[1751266627617,5.08020946,150.67,150.63,7.79456747]
[1751266628141,5.08020946,150.67,150.65,2.48354905]
[1751266628315,5.08020946,150.67,150.63,5.31101842]
[1751266628612,5.08020946,150.67,150.64,2.48374048]
[1751266628814,5.08020946,150.67,150.65,2.48374048]
[1751266629031,5.08020946,150.67,150.63,5.31101842]
[1751266629222,5.08020946,150.67,150.64,2.48374048]
[1751266629523,5.08020946,150.67,150.65,2.48374048]
[1751266629736,5.08020946,150.67,150.63,5.31101842]
[1751266629927,5.08020946,150.67,150.64,2.48395451]
[1751266630128,5.08020946,150.67,150.65,2.48395451]
[1751266630327,5.08020946,150.67,150.63,5.31101842]
[1751266630526,5.08020946,150.67,150.64,2.48419309]
[1751266630842,5.08020946,150.67,150.65,2.48419309]
[1751266631046,5.08020946,150.67,150.63,5.31101842]
[1751266631252,5.08020946,150.67,150.64,2.48419309]
[1751266631425,5.08020946,150.67,150.65,2.48419309]
[1751266631623,5.08020946,150.67,150.63,92.81101842]
[1751266631833,5.30891233,150.69,150.64,2.48446043]
[1751266632031,5.08020946,150.68,150.65,2.48446043]
[1751266632235,5.08020946,150.68,150.63,97.89122788]
[1751266632445,5.08020946,150.66,150.64,2.48462422]
[1751266632633,5.08020946,150.66,150.65,2.48462422]
[1751266632955,5.08020946,150.67,150.65,2.48462422]
[1751266633256,5.08020946,150.67,150.63,92.81101842]
[1751266633461,5.08020946,150.67,150.64,2.48473475]
[1751266633641,5.08020946,150.67,150.65,2.48473475]
[1751266633845,5.08020946,150.67,150.63,92.81101842]
[1751266633846,5.08020946,150.67,150.66,2.48473475]
[1751266634860,5.08020946,150.67,150.63,92.81101842]
[1751266635033,5.08020946,150.67,150.64,2.4847472]
[1751266635233,5.08020946,150.67,150.65,7.4542416]
[1751266635448,5.08020946,150.67,150.66,4.9694944]
[1751266635749,5.18020946,150.67,150.66,4.9694944]
[1751266636461,0.1,150.67,150.66,4.9694944]
[1751266636634,5.18020946,150.67,150.66,4.9694944]
[1751266638754,5.18020946,150.67,150.63,92.81101842]
[1751266639075,0.1,150.67,150.64,2.4850833]
[1751266639273,5.18020946,150.67,150.65,2.4850833]
[1751266639455,5.18020946,150.67,150.63,92.81101842]
[1751266639653,5.18020946,150.67,150.64,2.4853327]
[1751266639854,5.18020946,150.67,150.65,2.4853327]
[1751266640064,5.18020946,150.67,150.63,92.81101842]
[1751266640266,5.18020946,150.67,150.64,2.4853327]
[1751266640457,5.18020946,150.67,150.65,2.4853327]
[1751266640676,5.18020946,150.67,150.63,92.81101842]
[1751266640865,5.18020946,150.67,150.64,2.48561029]
[1751266641070,5.18020946,150.67,150.65,2.48561029]
[1751266641378,5.18020946,150.67,150.63,92.81101842]
[1751266641578,5.18020946,150.67,150.64,2.48592767]
[1751266641764,5.18020946,150.67,150.65,2.48592767]
[1751266641964,5.18020946,150.67,150.63,92.81101842]
[1751266642177,5.18020946,150.67,150.64,2.48592767]
[1751266642366,5.18020946,150.67,150.65,2.48592767]
[1751266642560,5.18020946,150.67,150.63,92.81101842]
[1751266642760,5.18020946,150.67,150.64,2.48593504]
[1751266643064,5.18020946,150.67,150.65,2.48593504]
[1751266643266,5.18020946,150.67,150.63,92.81101842]
[1751266643480,0.1,150.67,150.64,2.77025795]
[1751266643677,0.1,150.67,150.65,2.48593481]
[1751266643879,0.1,150.67,150.66,2.48593481]
[1751266645269,0.1,150.67,150.66,8.08022741]
[1751266645472,0.1,150.67,150.66,13.16043687]
[1751266645874,0.1,150.67,150.66,10.67450206]
[1751266647074,0.1,150.67,150.66,13.15916224]
[1751266647658,0.1,150.67,150.66,2.76898332]
[1751266647879,0.1,150.67,150.66,2.48466018]
[1751266649068,5.18020946,150.67,150.66,2.48466018]
[1751266651174,0.1,150.67,150.66,2.48466018]
[1751266651373,5.18020946,150.67,150.66,2.48466018]
[1751266651888,10.4898265,150.67,150.66,2.48466018]
[1751266652580,10.4898265,150.67,150.62,7.76]
[1751266652787,5.08020946,150.64,150.63,2.4843818]
[1751266653172,5.08020946,150.65,150.63,2.4843818]
[1751266653396,5.08020946,150.65,150.64,2.4843818]
[1751266655489,10.39053139,150.65,150.64,2.4843818]
[1751266655791,10.39053139,150.65,150.61,87.5]
[1751266655973,5.08020946,150.63,150.62,2.48446489]
[1751266656384,5.31032193,150.65,150.62,2.48446489]
[1751266656588,5.31032193,150.65,150.63,2.48446489]
[1751266656893,5.30996946,150.66,150.6,0.2]
[1751266657105,5.30996946,150.66,150.61,2.48418494]
[1751266657391,5.30996946,150.66,150.62,2.48418494]
[1751266657712,5.30996946,150.66,150.63,2.48418494]
[1751266657878,5.08020946,150.64,150.6,0.2]
[1751266658199,5.08020946,150.63,150.61,2.48392649]
[1751266658376,5.08020946,150.63,150.62,2.48392649]
[1751266659097,10.39102561,150.64,150.62,2.48392649]
[1751266659401,10.39102561,150.64,150.6,0.2]
[1751266659402,10.39102561,150.64,150.63,2.48392649]
[1751266661274,10.39102561,150.64,150.6,0.2]
[1751266661474,5.08020946,150.63,150.61,2.48303043]
[1751266661686,5.08020946,150.63,150.62,2.48303043]
[1751266662190,10.39102561,150.64,150.62,2.48303043]
[1751266662390,10.39102561,150.64,150.6,0.2]
[1751266662582,10.39102561,150.64,150.61,2.48274171]
[1751266662785,10.39102561,150.64,150.62,2.48274171]
[1751266662987,10.39102561,150.64,150.6,0.2]
[1751266663186,10.39102561,150.64,150.61,2.48274171]
[1751266663477,10.39102561,150.64,150.62,2.48274171]
[1751266663678,10.39102561,150.64,150.6,0.2]
[1751266663997,5.30996946,150.66,150.61,2.4825441]
[1751266664201,5.08020946,150.65,150.62,2.4825441]
[1751266664394,5.08020946,150.65,150.6,10.59228532]
[1751266664603,5.08020946,150.65,150.61,2.48236359]
[1751266664792,5.08020946,150.65,150.62,2.48236359]
[1751266664995,5.08020946,150.65,150.61,0.28432314]
[1751266665187,5.30996946,150.66,150.62,2.48236408]
[1751266665387,10.39017892,150.66,150.61,10.67619456]
[1751266665686,10.39017892,150.66,150.62,2.48227743]
[1751266665881,5.08020946,150.65,150.61,5.5959851]
[1751266666087,5.08020946,150.65,150.62,2.48227792]
[1751266666291,5.08020946,150.65,150.61,5.5959851]
[1751266666500,5.08020946,150.65,150.62,2.48220374]
[1751266666683,5.08020946,150.65,150.61,10.67619456]
[1751266666890,5.08020946,150.65,150.62,2.48212383]
[1751266667095,5.08020946,150.65,150.61,98.17619456]
[1751266667402,5.08020946,150.65,150.62,2.48197891]
[1751266667599,0.1,150.67,150.61,98.17619456]
[1751266667783,5.18020946,150.67,150.62,7.56218788]
[1751266667990,5.18020946,150.67,150.63,2.48197842]
[1751266668203,5.18020946,150.67,150.64,2.48197842]
[1751266668410,5.18020946,150.67,150.65,2.48197842]
[1751266668612,5.18020946,150.67,150.62,92.58020946]
[1751266668786,5.18020946,150.67,150.63,2.48152637]
[1751266669109,5.40976963,150.67,150.64,2.48152637]
[1751266669306,5.08020946,150.65,150.62,87.5]
[1751266669516,5.08020946,150.64,150.63,2.48174722]
[1751266670990,10.39088391,150.64,150.6,7.86]
[1751266671186,5.31067445,150.64,150.61,2.48203176]
[1751266671502,5.31067445,150.64,150.6,0.2]
[1751266671706,5.31067445,150.64,150.61,2.68189256]
[1751266671888,5.31067445,150.64,150.61,0.2]
[1751266672291,5.08020946,150.62,150.61,0.2]
[1751266674318,10.39158909,150.62,150.61,0.2]
[1751266685117,55.04123795,150.62,150.61,0.2]
[1751266685321,46.457572,150.61,150.6,0.2]
[1751266685649,60.12285832,150.58,150.57,0.2]
[1751266685809,60.12285832,150.58,150.56,0.2]
[1751266686009,10.16041892,150.57,150.56,0.2]
[1751266686307,5.08020946,150.57,150.56,0.2]
[1751266687434,10.39335284,150.57,150.56,0.2]
[1751266688063,5.31314338,150.57,150.56,0.2]
[1751266688238,10.39335284,150.57,150.56,0.2]
[1751266689644,15.4735623,150.57,150.56,0.2]
[1751266689844,10.39335284,150.57,150.56,0.2]
[1751266691953,34.12321116,150.57,150.56,0.2]
[1751266692170,44.64964886,150.55,150.54,0.2]
[1751266692347,51.28105832,150.55,150.54,0.2]
[1751266692541,18.64964886,150.54,150.53,0.2]
[1751266692744,53.66985832,150.54,150.53,0.2]
[1751266693141,48.58964886,150.54,150.53,0.2]
[1751266693346,53.66985832,150.54,150.53,0.2]
[1751266693553,58.98406052,150.54,150.53,0.2]
[1751266696774,5.3142022,150.54,150.53,0.2]
[1751266696977,5.08020946,150.55,150.53,0.2]
[1751266697157,5.08020946,150.57,150.53,5.28020946]
[1751266697358,5.08020946,150.57,150.53,0.2]
[1751266697574,5.31288026,150.58,150.53,0.2]
[1751266697575,5.08020946,150.58,150.53,10.59476142]
[1751266697880,5.08020946,150.57,150.53,0.2]
[1751266698565,10.39349858,150.57,150.53,0.2]
[1751266698766,5.08020946,150.55,150.53,0.2]
[1751266699850,5.08020946,150.56,150.53,0.2]
[1751266701072,5.31243774,150.59,150.53,0.2]
[1751266701368,5.08020946,150.56,150.53,0.2]
[1751266703471,5.08020946,150.55,150.53,0.2]
[1751266703981,5.08020946,150.54,150.53,0.2]
[1751266707773,0.1,150.56,150.53,0.2]
[1751266707982,0.1,150.56,150.53,10.59467453]
[1751266708185,0.1,150.56,150.53,5.51446507]
[1751266708661,0.1,150.56,150.53,10.59467453]
[1751266708861,0.1,150.56,150.53,5.51446507]
[1751266709191,5.18020946,150.56,150.53,0.2]
[1751266709370,5.08020946,150.55,150.53,0.2]
[1751266710069,5.41352351,150.56,150.53,0.2]
[1751266710070,5.08020946,150.54,150.53,0.2]
[1751266711596,5.08020946,150.55,150.53,0.2]
[1751266712897,0.1,150.56,150.53,10.594613]
[1751266713106,0.1,150.56,150.53,5.51440354]
[1751266713481,0.1,150.56,150.54,5.08020946]
[1751266713685,0.1,150.56,150.55,5.08020946]
[1751266714004,0.1,150.56,150.55,10.02270573]
[1751266714400,0.1,150.56,150.55,10.30702887]
[1751266714902,0.1,150.56,150.55,15.62087808]
[1751266715614,0.1,150.56,150.55,4.94249627]
[1751266715909,0.1,150.56,150.54,87.5]
[1751266716193,0.1,150.56,150.55,4.94873445]
[1751266717282,0.1,150.56,150.54,5.31419175]
[1751266717610,0.1,150.56,150.54,10.39440121]
[1751266719518,0.1,150.56,150.55,5.3645326]
[1751266720415,0.1,150.56,150.55,5.59817235]
[1751266720590,0.1,150.56,150.55,10.67838181]
[1751266722515,0.1,150.56,150.54,5.31407668]
[1751266722695,5.18020946,150.56,150.53,93.01449202]
[1751266723010,0.1,150.56,150.53,5.51449202]
[1751266724188,0.1,150.56,150.53,10.59470148]
[1751266724808,0.1,150.56,150.53,5.51449202]
[1751266725711,0.1,150.56,150.54,5.08020946]
[1751266726021,0.1,150.56,150.54,10.39408708]
[1751266726840,0.1,150.56,150.55,5.08020946]
[1751266728110,0.1,150.56,150.55,10.67838181]
[1751266728528,0.1,150.56,150.55,5.59817235]
[1751266728838,0.1,150.56,150.55,98.17838181]
[1751266729213,0.1,150.56,150.55,116.82803067]
[1751266729534,0.1,150.56,150.55,124.91683067]
[1751266730908,0.1,150.56,150.55,150.91683067]
[1751266734735,0.1,150.56,150.55,118.81384921]
[1751266734919,0.1,150.56,150.55,92.81384921]
[1751266735441,0.1,150.56,150.54,92.81418748]
[1751266736947,0.1,150.56,150.54,87.5]
[1751266737147,0.1,150.56,150.54,92.81410933]
[1751266737630,5.18020946,150.56,150.54,87.5]
[1751266737942,0.1,150.56,150.54,87.5]
[1751266740241,0.1,150.56,150.54,87.0]
[1751266740738,0.1,150.56,150.53,92.51448056]
[1751266741048,5.18020946,150.56,150.53,87.2]
[1751266741231,0.1,150.56,150.53,92.51439121]
[1751266742640,0.1,150.56,150.53,87.2]
[1751266744120,5.18020946,150.56,150.53,87.2]
[1751266745728,5.18020946,150.56,150.53,92.51453251]
[1751266746242,0.1,150.56,150.53,92.51453251]
[1751266746442,0.1,150.56,150.53,97.59474197]
[1751266748637,0.1,150.56,150.53,92.51453251]
[1751266748841,0.1,150.56,150.53,97.59474197]
[1751266749225,0.1,150.56,150.53,92.51453251]
[1751266749523,0.1,150.56,150.53,97.59474197]
[1751266752332,0.1,150.56,150.54,5.08020946]
[1751266753941,0.1,150.56,150.53,97.59474197]
[1751266754953,0.1,150.56,150.54,5.08020946]
[1751266755253,0.1,150.56,150.54,10.39439059]
[1751266758554,0.1,150.56,150.54,97.39439059]
[1751266759757,0.1,150.56,150.55,5.08020946]
[1751266760443,0.1,150.56,150.55,0.28432314]
[1751266760959,0.1,150.56,150.54,92.31418113]
[1751266764375,0.1,150.56,150.54,5.31418113]
[1751266765169,0.1,150.56,150.54,10.39439059]
[1751266766071,0.1,150.56,150.55,5.3645326]
[1751266767678,0.1,150.56,150.54,10.39439059]
[1751266769665,0.1,150.56,150.54,5.31418113]
[1751266769866,0.1,150.56,150.54,10.39439059]
[1751266770380,0.1,150.56,150.54,97.39439059]
[1751266770967,0.1,150.56,150.54,87.0]
[1751266774654,5.41354128,150.56,150.54,87.0]
[1751266774853,0.1,150.56,150.54,87.0]
[1751266775455,5.08020946,150.55,150.54,87.0]
[1751266776055,10.49371614,150.56,150.54,87.0]
[1751266776254,10.49371614,150.56,150.53,0.2]
[1751266778062,5.08020946,150.55,150.53,0.2]
[1751266778377,5.41362334,150.56,150.53,0.2]
[1751266778554,5.08020946,150.55,150.53,0.2]
[1751266780073,5.08020946,150.54,150.53,0.2]
[1751266780370,5.31403097,150.55,150.53,0.2]
[1751266780578,5.08020946,150.54,150.53,0.2]
[1751266781747,10.39441166,150.54,150.53,0.2]
[1751266782652,29.04406052,150.54,150.53,0.2]
[1751266783148,29.54406052,150.54,150.53,0.2]
[1751266783348,20.21034886,150.53,150.5,0.2]
[1751266783577,5.08020946,150.51,150.5,0.2]
[1751266783772,10.3954709,150.51,150.5,0.2]
[1751266785470,5.31526144,150.51,150.5,0.2]
[1751266785660,10.3954709,150.51,150.5,0.2]
[1751266787377,5.31526144,150.51,150.5,0.2]
[1751266787581,5.08020946,150.51,150.5,0.2]
[1751266788983,5.31501186,150.52,150.5,0.2]
[1751266789284,5.08020946,150.52,150.5,0.2]
[1751266789476,5.31466607,150.53,150.5,0.2]
[1751266789661,5.08020946,150.52,150.5,0.2]
[1751266790478,5.31466607,150.53,150.5,0.2]
[1751266790686,5.08020946,150.52,150.5,0.2]
[1751266791781,10.39524091,150.52,150.5,0.2]
[1751266792786,26.0,150.54,150.5,0.2]
[1751266792787,10.39484826,150.53,150.5,0.2]
[1751266794393,5.08020946,150.51,150.5,0.2]
[1751266795177,18.60102689,150.53,150.5,0.2]
[1751266795392,5.08020946,150.51,150.5,0.2]
[1751266796292,10.3954709,150.51,150.5,0.2]
[1751266797986,10.8954709,150.51,150.5,0.2]
[1751266800490,12.4551709,150.51,150.5,0.2]
[1751266800691,57.10481976,150.51,150.5,0.2]
[1751266801093,56.60481976,150.51,150.5,0.2]
[1751266802175,37.4839429,150.51,150.5,0.2]
[1751266802376,37.4839429,150.51,150.47,0.2]
[1751266802377,44.64964886,150.48,150.47,0.2]
[1751266802581,54.81006778,150.48,150.47,0.2]
[1751266803378,31.08020946,150.48,150.47,0.2]
[1751266803689,29.32,150.5,150.47,0.2]
[1751266803690,26.0,150.5,150.47,0.2]
[1751266803907,5.08020946,150.5,150.47,0.2]
[1751266804395,5.08020946,150.49,150.47,0.2]
[1751266804596,5.08020946,150.48,150.47,0.2]
[1751266806186,10.39653056,150.48,150.47,0.2]
[1751266807378,26.5,150.5,150.47,0.2]
[1751266807575,20.59810437,150.53,150.47,5.5166639]
[1751266807892,51.67831383,150.53,150.49,5.08020946]
[1751266808087,25.67831383,150.53,150.49,5.08020946]
[1751266808289,20.36364153,150.53,150.49,5.08020946]
[1751266808479,20.59800202,150.53,150.49,5.08020946]
[1751266808876,25.67821148,150.53,150.48,5.08020946]
[1751266809908,5.81491874,150.52,150.48,5.08020946]
[1751266812288,5.31491874,150.52,150.48,5.08020946]
[1751266812884,20.59807732,150.53,150.49,5.08020946]
[1751266813091,25.67828678,150.53,150.49,5.08020946]
[1751266813308,20.59807732,150.53,150.49,5.08020946]
[1751266813512,25.67828678,150.53,150.49,5.08020946]
[1751266813889,25.67828678,150.53,150.48,5.08020946]
[1751266814905,25.67828678,150.53,150.48,5.3645326]
[1751266815606,15.28343207,150.53,150.49,5.08020946]
[1751266815990,20.36364153,150.53,150.49,5.08020946]
[1751266816189,15.28343207,150.53,150.49,5.08020946]
[1751266816391,15.28343207,150.53,150.48,5.60052033]
[1751266816603,15.28343207,150.53,150.5,5.08020946]
[1751266820505,15.28343207,150.53,150.52,5.08020946]
[1751266820815,0.1,150.53,150.52,92.9645326]
[1751266821015,0.1,150.53,150.52,87.88432314]
[1751266821517,0.1,150.53,150.52,90.3623271]
[1751266822207,0.1,150.53,150.52,90.07800396]
[1751266824224,0.1,150.53,150.52,95.44253656]
[1751266824795,0.1,150.53,150.52,92.9645326]
[1751266824994,0.1,150.53,150.52,98.27944091]
[1751266825196,0.1,150.53,150.52,100.75766816]
[1751266825513,0.1,150.53,150.52,95.6774587]
[1751266825712,0.1,150.53,150.52,95.44275985]
[1751266826394,0.1,150.53,150.52,2.76255039]
[1751266827293,0.1,150.53,150.52,0.28432314]
[1751266828721,0.1,150.53,150.52,2.76128001]
[1751266828921,0.1,150.53,150.52,2.47695687]
[1751266830813,0.1,150.53,150.51,12.18020946]
[1751266831215,0.1,150.53,150.51,7.1]
[1751266831418,0.1,150.53,150.5,12.18020946]
[1751266831615,10.49494413,150.53,150.51,2.47654664]
[1751266831828,10.49494413,150.53,150.5,7.1]
[1751266832327,5.08020946,150.52,150.5,7.1]
[1751266832733,10.49494413,150.53,150.5,7.1]
[1751266833428,5.41473467,150.53,150.5,7.1]
[1751266833618,10.49494413,150.53,150.5,7.1]
[1751266834535,5.08020946,150.51,150.47,0.2]
[1751266834720,5.41473467,150.53,150.47,0.2]
[1751266834721,5.08020946,150.49,150.47,0.2]
[1751266836024,10.39631708,150.49,150.47,0.2]
[1751266837744,5.08020946,150.48,150.47,0.2]
[1751266838427,5.08020946,150.51,150.47,5.28020946]
[1751266838608,26.0,150.52,150.5,5.08020946]
[1751266838918,0.1,150.53,150.51,5.08020946]
[1751266839227,0.1,150.53,150.52,5.08020946]
[1751266840827,0.1,150.53,150.49,93.20018375]
[1751266841018,0.1,150.53,150.52,5.08020946]
[1751266841833,0.1,150.53,150.49,93.20018375]
[1751266842131,0.1,150.53,150.52,5.08020946]
[1751266843619,0.1,150.53,150.52,7.55604186]
[1751266844137,0.1,150.53,150.52,14.65604186]
[1751266844835,0.1,150.53,150.52,20.25527331]
[1751266845022,0.1,150.53,150.52,20.25513541]
[1751266845936,0.1,150.53,150.52,14.9402271]
[1751266847341,0.1,150.53,150.52,20.25513541]
[1751266847521,0.1,150.53,150.52,15.17492595]
[1751266848128,0.1,150.53,150.52,20.25513541]
[1751266850037,0.1,150.53,150.52,38.90478427]
[1751266851951,0.1,150.53,150.52,20.25513541]
[1751266852245,0.1,150.53,150.52,19.97081227]
[1751266852445,0.1,150.53,150.52,20.25513541]
[1751266854737,0.1,150.53,150.52,126.50478427]
[1751266856535,0.1,150.53,150.52,107.75513541]
[1751266857441,0.1,150.53,150.52,102.67492595]
[1751266857645,0.1,150.53,150.52,107.75513541]
[1751266858953,0.1,150.53,150.52,20.15513541]
[1751266860158,0.1,150.53,150.52,20.15912346]
[1751266863369,0.1,150.53,150.52,15.078914]
[1751266863598,0.1,150.53,150.52,20.15912346]
[1751266864977,0.1,150.53,150.52,107.75912346]
[1751266865661,0.1,150.53,150.52,100.75912346]
[1751266865980,0.1,150.53,150.52,107.75912346]